[Event "African Open (w)"]
[Site "followchess.com"]
[Date "2022.09.27"]
[Round "9"]
[White "Abigail Karyah"]
[Black "Ayemou Akissi Victoire Sinchie"]
[Result "1-0"]
[WhiteElo "1435"]
[BlackElo "1182"]
[ECO "B00"]
[WhiteFed "LBR"]
[BlackFed "CIV"]
[FCGameId "964911164"]
[WhiteFideId "22601147"]
[BlackFideId "20803044"]
[TimeControl "5400+30"]

1. e4 {[%clk 1:30:56]} b6 {[%clk 1:30:50]} 2. d4 {[%clk 1:31:17]} Bb7 
{[%clk 1:31:09]} 3. Nc3 {[%clk 1:31:38]} e6 4. a3 d6 {[%clk 1:30:50]} 5. Nf3 
{[%clk 1:31:55]} Nf6 6. Bd3 Be7 {[%clk 1:30:11]} 7. O-O {[%clk 1:32:04]} O-O 
{[%clk 1:30:18]} 8. b3 {[%clk 1:31:06]} Nbd7 {[%clk 1:29:56]} 9. Bb2 
{[%clk 1:31:19]} c5 {[%clk 1:29:51]} 10. Qe2 {[%clk 1:30:18]} cxd4 
{[%clk 1:29:22]} 11. Nxd4 {[%clk 1:30:34]} e5 {[%clk 1:28:42]} 12. Nf5 
{[%clk 1:30:33]} g6 {[%clk 1:27:33]} 13. Nxe7+ {[%clk 1:30:27]} Qxe7 
{[%clk 1:27:04]} 14. Rfd1 {[%clk 1:28:48]} Rac8 {[%clk 1:25:15]} 15. Rac1 
{[%clk 1:28:29]} Rfd8 {[%clk 1:24:24]} 16. Bc4 {[%clk 1:27:27]} Nc5 
{[%clk 1:23:55]} 17. Nd5 {[%clk 1:27:27]} Bxd5 {[%clk 1:22:38]} 18. Bxd5 
{[%clk 1:27:47]} Rc7 {[%clk 1:17:46]} 19. Qe3 {[%clk 1:23:21]} Rdc8 
{[%clk 1:13:32]} 20. c4 {[%clk 1:22:14]} Kg7 {[%clk 1:07:20]} 21. f4 
{[%clk 1:12:14]} exf4 {[%clk 1:05:11]} 22. Qxf4 {[%clk 1:12:36]} Re8 
{[%clk 1:00:17]} 23. Rf1 {[%clk 1:10:39]} Nd7 {[%clk 0:59:06]} 24. Rc2 Ne5 
{[%clk 0:57:53]} 25. Rcf2 {[%clk 1:01:43]} Nxd5 26. cxd5 {[%clk 1:01:06]} a5 
{[%clk 0:53:57]} 27. Qe3 {[%clk 0:57:29]} Rb7 {[%clk 0:51:02]} 28. Rxf7+ 
{[%clk 0:55:27]} Qxf7 {[%clk 0:50:57]} 29. Rxf7+ {[%clk 0:55:51]} Kxf7 30. Qf4+ 
{[%clk 0:55:35]} Kg8 {[%clk 0:50:06]} 31. Qf6 {[%clk 0:55:11]} Rd7 
{[%clk 0:49:24]} 32. Bd4 {[%clk 0:53:20]} b5 {[%clk 0:48:35]} 33. Bc3 
{[%clk 0:50:20]} a4 {[%clk 0:48:36]} 34. bxa4 {[%clk 0:50:18]} bxa4 
{[%clk 0:48:05]} 35. h3 {[%clk 0:50:32]} Rf8 {[%clk 0:47:03]} 36. Qe6+ 
{[%clk 0:50:42]} Rff7 {[%clk 0:46:26]} 37. Bxe5 {[%clk 0:50:27]} dxe5 
{[%clk 0:46:14]} 38. Qxe5 {[%clk 0:50:50]} Rde7 {[%clk 0:45:21]} 39. Qd4 
{[%clk 0:50:42]} Rf4 {[%clk 0:45:21]} 40. d6 {[%clk 0:49:58]} Rexe4 
{[%clk 0:45:09]} 41. Qd5+ {[%clk 0:50:04]} Kg7 {[%clk 0:44:38]} 42. d7 
{[%clk 0:50:10]} Rd4 {[%clk 0:43:51]} 43. Qe5+ {[%clk 0:50:26]} Kg8 
{[%clk 0:43:35]} 44. Qxf4 {[%clk 0:49:15]} Rxd7 {[%clk 0:43:38]} 45. Qxa4 
{[%clk 0:49:37]} 1-0

[Event "African Open (w)"]
[Site "followchess.com"]
[Date "2022.09.22"]
[Round "5"]
[White "Amadasun, Rosemary"]
[Black "Likando Namakau"]
[Result "0-1"]
[WhiteElo "1807"]
[BlackElo "1527"]
[ECO "B41"]
[WhiteFed "NGR"]
[BlackFed "ZAM"]
[FCGameId "1471086118"]
[WhiteFideId "8500983"]
[BlackFideId "8714029"]
[TimeControl "5400+30"]

1. e4 {[%clk 1:24:17]} c5 {[%clk 1:14:47]} 2. Nf3 {[%clk 1:24:17]} e6 
{[%clk 1:14:47]} 3. d4 {[%clk 1:24:17]} cxd4 {[%clk 1:14:47]} 4. Nxd4 
{[%clk 1:24:17]} Nf6 {[%clk 1:14:47]} 5. Nc3 {[%clk 1:24:17]} Bb4 6. Nb5 a6 
{[%clk 1:12:11]} 7. Nd6+ {[%clk 1:24:11]} Kf8 {[%clk 1:00:16]} 8. e5 
{[%clk 1:20:03]} Nd5 {[%clk 1:00:04]} 9. Qf3 {[%clk 1:18:39]} Bxd6 
{[%clk 0:59:46]} 10. exd6 {[%clk 1:18:27]} Nxc3 {[%clk 0:52:07]} 11. Qxc3 
{[%clk 1:18:30]} Nc6 {[%clk 0:51:45]} 12. Be2 {[%clk 1:18:16]} b5 
{[%clk 0:51:01]} 13. Bf3 {[%clk 1:17:21]} Bb7 {[%clk 0:51:05]} 14. O-O 
{[%clk 1:17:08]} f6 {[%clk 0:50:37]} 15. Be3 {[%clk 1:15:30]} Kf7 
{[%clk 0:48:28]} 16. Qd2 {[%clk 1:13:54]} Rf8 {[%clk 0:48:34]} 17. b3 
{[%clk 1:09:29]} b4 {[%clk 0:47:41]} 18. Bxc6 {[%clk 1:09:11]} Bxc6 
{[%clk 0:48:00]} 19. Qxb4 {[%clk 1:09:21]} Kg8 {[%clk 0:47:54]} 20. c4 
{[%clk 1:08:53]} f5 {[%clk 0:46:52]} 21. Qd2 {[%clk 1:05:24]} h6 
{[%clk 0:45:00]} 22. b4 {[%clk 1:04:02]} Qh4 {[%clk 0:44:16]} 23. f4 
{[%clk 1:03:30]} Rf6 {[%clk 0:42:33]} 24. Rf2 {[%clk 0:50:16]} Rg6 
{[%clk 0:40:43]} 25. Bd4 {[%clk 0:48:00]} Rg4 {[%clk 0:39:30]} 26. Be5 
{[%clk 0:48:01]} Qh3 {[%clk 0:37:57]} 27. a4 {[%clk 0:47:07]} Qb3 
{[%clk 0:33:50]} 28. Qc3 {[%clk 0:40:29]} Bxa4 {[%clk 0:30:48]} 29. Qxb3 
{[%clk 0:39:41]} Bxb3 {[%clk 0:30:55]} 30. c5 {[%clk 0:38:55]} Bc4 
{[%clk 0:30:02]} 31. Rc2 {[%clk 0:38:48]} Bb5 {[%clk 0:30:19]} 32. Kf2 
{[%clk 0:36:01]} h5 {[%clk 0:28:44]} 33. g3 {[%clk 0:35:02]} h4 {[%clk 0:24:57]} 
34. Ra3 {[%clk 0:34:00]} hxg3+ {[%clk 0:24:01]} 35. Rxg3 {[%clk 0:33:37]} Rxg3 
{[%clk 0:24:05]} 36. Kxg3 {[%clk 0:33:31]} Kf7 {[%clk 0:24:20]} 37. Kf3 
{[%clk 0:32:59]} Rh8 {[%clk 0:24:10]} 38. Ke3 {[%clk 0:33:08]} Rh3+ 
{[%clk 0:23:45]} 39. Kd2 {[%clk 0:32:33]} Rxh2+ {[%clk 0:22:10]} 40. Kc1 
{[%clk 0:32:34]} Rxc2+ {[%clk 0:21:09]} 41. Kxc2 {[%clk 0:33:00]} Kg6 
{[%clk 0:20:48]} 42. Kd2 {[%clk 0:33:21]} Kh6 {[%clk 0:20:55]} 43. Ke3 
{[%clk 0:33:42]} g5 {[%clk 0:20:18]} 44. fxg5+ {[%clk 0:34:07]} Kxg5 
{[%clk 0:19:49]} 45. Kf3 {[%clk 0:33:55]} Bc6+ {[%clk 0:19:29]} 46. Kg3 
{[%clk 0:34:05]} Bb7 {[%clk 0:19:03]} 47. Bf4+ {[%clk 0:27:30]} Kf6 
{[%clk 0:18:49]} 48. Bd2 {[%clk 0:26:59]} e5 {[%clk 0:18:56]} 49. Kf2 
{[%clk 0:25:39]} f4 {[%clk 0:18:15]} 50. Bc3 Kf5 {[%clk 0:16:40]} 0-1

[Event "African Open (w)"]
[Site "followchess.com"]
[Date "2022.09.21"]
[Round "4"]
[White "Amadasun, Rosemary"]
[Black "Paulo, Jemima"]
[Result "0-1"]
[WhiteElo "1807"]
[BlackElo "1886"]
[ECO "B70"]
[WhiteFed "NGR"]
[BlackFed "ANG"]
[FCGameId "1929437018"]
[WhiteFideId "8500983"]
[BlackFideId "10110836"]
[TimeControl "5400+30"]

1. e4 {[%clk 1:30:43]} c5 {[%clk 1:30:53]} 2. Nf3 {[%clk 1:30:59]} d6 
{[%clk 1:31:14]} 3. d4 {[%clk 1:31:19]} cxd4 {[%clk 1:31:35]} 4. Nxd4 
{[%clk 1:31:34]} Nf6 {[%clk 1:31:46]} 5. Nc3 {[%clk 1:31:53]} g6 
{[%clk 1:32:06]} 6. Be2 {[%clk 1:31:24]} Bg7 {[%clk 1:32:25]} 7. Be3 
{[%clk 1:31:32]} O-O {[%clk 1:31:41]} 8. Qd2 {[%clk 1:31:43]} Nc6 
{[%clk 1:31:53]} 9. h4 {[%clk 1:30:07]} h5 {[%clk 1:28:12]} 10. f3 
{[%clk 1:28:59]} d5 {[%clk 1:28:16]} 11. exd5 {[%clk 1:19:02]} Nxd5 
{[%clk 1:28:34]} 12. Nxc6 {[%clk 1:15:48]} bxc6 {[%clk 1:28:42]} 13. Nxd5 
{[%clk 1:12:49]} cxd5 {[%clk 1:29:03]} 14. c3 {[%clk 1:12:37]} Qd6 
{[%clk 1:27:39]} 15. g4 {[%clk 1:05:22]} hxg4 {[%clk 1:26:51]} 16. fxg4 Bxg4 17. 
O-O-O {[%clk 1:05:13]} Bxe2 {[%clk 1:22:31]} 18. Qxe2 {[%clk 1:04:45]} Rfc8 
{[%clk 1:16:40]} 19. Qd3 {[%clk 0:53:59]} Rab8 {[%clk 1:14:45]} 20. Rd2 
{[%clk 0:48:22]} Bxc3 {[%clk 1:12:03]} 21. bxc3 {[%clk 0:43:48]} Qa3+ 
{[%clk 1:12:24]} 22. Kd1 {[%clk 0:42:30]} Rxc3 {[%clk 1:12:46]} 23. Qxc3 
{[%clk 0:32:30]} Qxc3 {[%clk 1:13:03]} 24. Ke2 {[%clk 0:32:10]} Rb2 
{[%clk 1:13:24]} 25. Rd1 {[%clk 0:32:09]} Qc4+ {[%clk 1:13:34]} 26. Ke1 
{[%clk 0:31:36]} Qxh4+ {[%clk 1:13:53]} 27. Ke2 {[%clk 0:31:52]} Qc4+ 
{[%clk 1:13:22]} 28. Ke1 {[%clk 0:32:16]} Rxa2 {[%clk 1:13:30]} 29. Bd4 
{[%clk 0:31:20]} f6 {[%clk 1:13:48]} 30. Bb2 {[%clk 0:31:08]} Qb4 
{[%clk 1:14:11]} 0-1